bitfinex-derivatives/quotes_BNBF0:USTF0_20250904
["timestamp","ask_amount","ask_price","bid_price","bid_amount"]
[1756962679758,0.20530792,847.56,846.81,0.79574621]
[1756962681154,0.20530792,847.56,846.8,0.79574621]
[1756962683357,0.20530792,847.56,846.79,0.79574621]
[1756962683557,0.79301562,847.73,846.79,0.79574621]
[1756962683754,0.79301562,848.47,847.63,0.79574621]
[1756962684054,0.79301562,847.89,847.23,0.79574621]
[1756962684256,0.79301562,847.85,847.25,0.79574621]
[1756962684453,0.79301562,847.84,847.25,0.79574621]
[1756962684657,0.79301562,847.85,847.24,0.79574621]
[1756962684858,1.0558038,848.13,847.21,0.79574621]
[1756962685158,1.0558038,848.14,847.2,0.79574621]
[1756962686157,1.0558038,848.15,847.19,0.79574621]
[1756962686357,1.0558038,848.18,847.18,0.79574621]
[1756962686656,1.0558038,848.2,847.2,0.79574621]
[1756962686956,1.0558038,848.19,847.19,0.79574621]
[1756962687265,1.0558038,848.19,846.98,1.0543807]
[1756962687266,1.0558038,848.19,847.18,0.79574621]
[1756962688165,1.0558038,848.19,847.19,0.79574621]
[1756962689165,1.0558038,848.19,847.18,0.79574621]
[1756962690162,1.0558038,848.2,847.18,0.79574621]
[1756962691864,1.0558038,848.19,847.18,0.79574621]
[1756962692362,1.0558038,848.19,847.17,0.79574621]
[1756962693166,1.0558038,848.2,847.17,0.79574621]
[1756962693664,1.0558038,848.2,847.16,0.79574621]
[1756962693868,1.0558038,848.22,847.15,0.79574621]
[1756962694069,0.20522074,848.27,847.12,0.79574621]
[1756962694268,0.20522074,848.27,847.1,0.79574621]
[1756962695065,0.20522074,848.27,847.09,0.79574621]
[1756962696068,0.20522074,848.27,847.1,0.79574621]
[1756962696767,0.20522074,848.27,847.07,0.79574621]
[1756962698970,0.20522074,848.27,847.27,0.79574621]
[1756962699367,0.20522074,848.27,847.26,0.79574621]
[1756962699566,0.20522074,848.27,847.23,0.79574621]
[1756962699771,0.20522074,848.27,847.22,0.79574621]
[1756962700271,0.20522074,848.27,847.2,0.79574621]
[1756962701172,0.20522074,848.27,847.19,0.79574621]
[1756962701369,0.20522074,848.27,847.15,0.79574621]
[1756962701572,0.20522074,848.27,847.16,0.79574621]
[1756962702074,0.20522074,848.27,847.14,0.79574621]
[1756962702268,0.20522074,848.27,847.13,0.79574621]
[1756962703275,0.20522074,848.27,847.12,0.79574621]
[1756962704278,0.20522074,848.27,847.11,0.79574621]
[1756962705579,0.20522074,848.27,847.09,0.79574621]
[1756962705778,0.20522074,848.27,846.5,1.581571]
[1756962705779,0.20522074,848.27,847.08,0.79574621]
[1756962706275,0.20522074,848.27,847.09,0.79574621]
[1756962707179,0.20522074,848.27,847.08,0.79574621]
[1756962708682,0.20522074,848.27,847.11,0.79574621]
[1756962709181,0.20522074,848.27,847.08,0.79574621]
[1756962712079,0.20522074,848.27,847.09,0.79574621]
[1756962713675,0.20522074,848.27,847.08,0.79574621]
[1756962715479,0.20522074,848.27,847.06,0.79574621]
[1756962715678,0.20522074,848.27,847.07,0.79574621]
[1756962717079,0.20522074,848.27,847.05,0.79574621]
[1756962717379,0.20522074,848.27,847.06,0.79574621]
[1756962718080,0.20522074,848.27,847.05,0.79574621]
[1756962719084,0.20522074,848.27,847.08,0.79574621]
[1756962719581,0.20522074,848.27,847.09,0.79574621]
[1756962719780,0.20522074,848.27,847.11,0.79574621]
[1756962722487,0.20522074,848.27,847.12,0.79574621]
[1756962723685,0.20522074,848.27,847.13,0.79574621]
[1756962723888,0.20522074,848.27,847.12,0.79574621]
[1756962724084,0.20522074,848.27,847.1,0.79574621]
[1756962724787,0.20522074,848.27,847.07,0.79574621]
[1756962724989,0.20522074,848.27,846.27,0.20531761]
[1756962724990,0.20522074,848.27,847.06,0.79574621]
[1756962726391,0.20522074,848.27,847.05,0.79574621]
[1756962727791,0.20522074,848.27,847.06,0.79574621]
[1756962729996,0.20522074,848.27,847.05,0.79574621]
[1756962731197,0.20522074,848.27,847.06,0.79574621]
[1756962731398,0.20522074,848.27,847.04,0.79574621]
[1756962732093,0.20522074,848.27,846.97,0.79574621]
[1756962732297,0.20522074,848.27,847.05,0.79574621]
[1756962733399,0.20522074,848.27,847.04,0.79574621]
[1756962733999,0.20522074,848.27,847.03,0.79574621]
[1756962734398,0.20522074,848.27,847.01,0.79574621]
[1756962735298,0.20522074,848.27,847.02,0.79574621]
[1756962736201,0.20522074,848.27,847.04,0.79574621]
[1756962736400,0.20522074,848.27,847.02,0.79574621]
[1756962737202,0.20522074,848.27,847.03,0.79574621]
[1756962738704,0.20522074,848.27,847.04,0.79574621]
[1756962739207,0.20522074,848.27,847.05,0.79574621]
[1756962740200,0.20522074,848.27,846.8,1.0543807]
[1756962740201,0.20522074,848.27,847.07,0.79574621]
[1756962740406,0.20522074,848.27,847.08,0.79574621]
[1756962740705,0.20522074,848.27,846.84,1.0543807]
[1756962740706,1.0558038,848.26,847.1,0.79574621]
[1756962740906,1.0558038,848.24,847.11,0.79574621]
[1756962741202,1.0558038,848.22,847.12,0.79574621]
[1756962741505,1.0558038,848.21,847.13,0.79574621]
[1756962741702,1.0558038,848.18,847.14,0.79574621]
[1756962742202,1.0558038,848.16,847.16,0.79574621]
[1756962743205,1.0558038,848.14,847.18,0.79574621]
[1756962744005,1.0558038,848.18,847.16,0.79574621]
[1756962744203,1.0558038,848.16,847.17,0.79574621]
[1756962746203,1.0558038,848.12,847.18,0.79574621]
[1756962746503,1.0558038,848.16,847.16,0.79574621]
[1756962748109,1.0558038,848.16,847.15,0.79574621]
[1756962748707,1.0558038,848.16,847.16,0.79574621]
[1756962749211,1.0558038,848.16,847.15,0.79574621]
[1756962750212,1.0558038,848.16,847.16,0.79574621]
[1756962750411,1.0558038,848.15,847.16,0.79574621]
[1756962750911,1.0558038,848.14,847.16,0.79574621]
[1756962751414,1.0558038,848.13,847.17,0.79574621]
[1756962752512,1.0558038,848.14,847.17,0.79574621]
[1756962752915,1.0558038,848.18,847.17,0.79574621]
[1756962753116,1.0558038,848.18,847.16,0.79574621]
[1756962753619,1.0558038,848.18,847.15,0.79574621]
[1756962753819,1.0558038,848.15,847.16,0.79574621]
[1756962754022,1.0558038,848.16,847.17,0.79574621]
[1756962755425,0.20522074,848.27,847.33,0.79574621]
[1756962755721,0.20522074,848.27,847.34,0.79574621]
[1756962755924,0.20522074,848.27,847.35,0.79574621]
[1756962756122,0.20522074,848.27,847.36,0.79574621]
[1756962756819,0.20522074,848.27,847.35,0.79574621]
[1756962758125,0.20522074,848.27,847.34,0.79574621]
[1756962759728,0.20522074,848.27,847.35,0.79574621]
[1756962760832,0.20522074,848.27,847.34,0.79574621]
[1756962763229,0.20522074,848.27,847.33,0.79574621]
[1756962763532,0.20522074,848.27,847.32,0.79574621]
[1756962764029,0.20522074,848.27,847.33,0.79574621]
[1756962764333,0.20522074,848.27,847.38,0.79574621]
[1756962764528,0.20522074,848.27,847.47,0.79574621]
[1756962764733,0.20522074,848.27,847.46,0.79574621]
[1756962765231,0.20522074,848.27,847.45,0.79574621]
[1756962765834,0.20522074,848.27,847.46,0.79574621]
[1756962766135,0.20522074,848.27,847.45,0.79574621]
[1756962766430,0.20522074,848.27,847.44,0.79574621]
[1756962766934,0.20522074,848.27,847.46,0.79574621]
[1756962767334,0.20522074,848.27,847.45,0.79574621]
[1756962768230,0.20522074,848.27,847.43,0.79574621]
[1756962769137,0.20522074,848.27,847.42,0.79574621]
[1756962770938,0.20522074,848.27,847.41,0.79574621]
[1756962771235,0.20522074,848.27,847.43,0.79574621]
[1756962771435,0.20522074,848.27,847.38,0.79574621]
[1756962774235,0.20522074,848.27,847.39,0.79574621]
[1756962774439,0.20522074,848.27,847.4,0.79574621]
[1756962776139,0.20522074,848.27,847.42,0.79574621]
[1756962776940,0.20522074,848.27,847.45,0.79574621]
[1756962777134,0.20522074,848.27,847.44,0.79574621]
[1756962781143,0.20522074,848.27,847.46,0.79574621]
[1756962782840,0.20522074,848.27,847.44,0.79574621]
[1756962786346,0.20522074,848.27,847.43,0.79574621]
[1756962786949,0.20522074,848.27,847.42,0.79574621]
[1756962790652,0.20522074,848.27,847.39,0.79574621]
[1756962791254,0.20522074,848.27,847.4,0.79574621]
[1756962791453,0.20522074,848.27,847.39,0.79574621]
[1756962791749,0.20522074,848.27,847.54,0.79574621]
[1756962793254,0.20522074,848.27,847.53,0.79574621]
[1756962794256,0.20522074,848.27,847.52,0.79574621]
[1756962795058,0.20522074,848.27,847.55,0.79574621]
[1756962795252,0.20522074,848.27,847.32,1.0543807]
[1756962795253,0.20522074,848.27,847.54,0.79574621]
[1756962795452,0.20522074,848.27,847.55,0.79574621]
[1756962795655,0.20522074,848.27,847.54,0.79574621]
[1756962795959,0.20522074,848.27,847.52,0.79574621]
[1756962796558,0.20522074,848.27,847.5,0.79574621]
[1756962796858,0.20522074,848.27,847.52,0.79574621]
[1756962798959,0.20522074,848.27,847.49,0.79574621]
[1756962800356,0.20522074,848.27,847.44,0.79574621]
[1756962800855,0.20522074,848.27,847.43,0.79574621]
[1756962801060,0.20522074,848.27,847.42,0.79574621]
[1756962801260,0.20522074,848.27,847.43,0.79574621]
[1756962801561,0.20522074,848.27,847.41,0.79574621]
[1756962801760,0.20522074,848.27,847.39,0.79574621]
[1756962802154,0.20522074,848.27,847.38,0.79574621]
[1756962802360,0.20522074,848.27,847.37,0.79574621]
[1756962803459,0.20522074,848.27,847.33,0.79574621]
[1756962804160,0.20522074,848.27,847.32,0.79574621]
[1756962804364,0.20522074,848.27,847.15,0.79574621]
[1756962806966,0.20522074,848.27,847.16,0.79574621]
[1756962808967,0.20522074,848.27,847.17,0.79574621]
[1756962809169,0.20522074,848.27,847.19,0.79574621]
[1756962809370,0.20522074,848.27,847.16,0.79574621]
[1756962809773,0.20522074,848.27,847.18,0.79574621]
[1756962810163,0.20522074,848.27,847.19,0.79574621]
[1756962810668,0.20522074,848.27,847.2,0.79574621]
[1756962811165,0.20522074,848.27,847.23,0.79574621]
[1756962811468,0.20522074,848.27,847.2,0.79574621]
[1756962813266,0.20522074,848.27,847.21,0.79574621]
[1756962814668,0.20522074,848.27,847.19,0.79574621]
[1756962815863,0.20522074,848.27,847.18,0.79574621]
[1756962816265,0.20522074,848.27,847.17,0.79574621]
[1756962816965,0.20522074,848.27,847.16,0.79574621]
[1756962817169,0.20522074,848.27,847.11,0.79574621]
[1756962818365,1.0558038,848.26,847.11,0.79574621]
[1756962818970,1.26102454,848.27,847.11,0.79574621]
[1756962819166,0.20522074,848.27,847.1,0.79574621]
[1756962820472,0.20522074,848.27,847.09,0.79574621]
[1756962821268,0.20522074,848.27,847.08,0.79574621]
[1756962821568,0.20522074,848.27,847.09,0.79574621]
[1756962822171,0.20522074,848.27,847.08,0.79574621]
[1756962822367,0.20522074,848.27,847.07,0.79574621]
[1756962826972,0.20522074,848.27,847.06,0.79574621]
[1756962827172,0.20522074,848.27,847.05,0.79574621]
[1756962828374,0.20522074,848.27,847.06,0.79574621]
[1756962830877,0.20522074,848.27,847.07,0.79574621]
[1756962831078,0.20522074,848.27,847.05,0.79574621]
[1756962831279,0.20522074,848.27,847.04,0.79574621]
[1756962831874,0.20522074,848.27,847.05,0.79574621]
[1756962832078,0.20522074,848.27,847.04,0.79574621]
[1756962836884,0.20522074,848.27,847.02,0.79574621]
[1756962840884,0.20522074,848.27,847.03,0.79574621]
[1756962841290,0.20522074,848.27,847.04,0.79574621]
[1756962841986,0.20522074,848.27,847.05,0.79574621]
[1756962842185,0.20522074,848.27,847.04,0.79574621]
[1756962844489,0.20522074,848.27,847.05,0.79574621]
[1756962846289,0.20522074,848.27,847.04,0.79574621]
[1756962846485,0.20522074,848.27,847.03,0.79574621]
[1756962847889,0.20522074,848.27,847.02,0.79574621]
[1756962848787,0.20522074,848.27,847.01,0.79574621]
[1756962849292,0.20522074,848.27,847.02,0.79574621]
[1756962849686,1.0558038,848.23,847.01,0.79574621]
[1756962850187,1.0558038,848.22,847.01,0.79574621]
[1756962851988,1.0558038,848.25,847.0,0.79574621]
[1756962852291,1.0558038,848.23,847.0,0.79574621]
[1756962852495,1.26102454,848.27,846.98,0.79574621]
[1756962852794,1.0558038,848.26,846.98,0.79574621]
[1756962852990,1.0558038,848.24,846.96,0.79574621]
[1756962853195,0.20522074,848.27,846.92,0.79574621]
[1756962854196,0.20522074,848.27,846.93,0.79574621]
[1756962855197,1.0558038,848.26,846.93,0.79574621]
[1756962856201,1.0558038,848.24,846.94,0.79574621]
[1756962856397,1.0558038,848.22,846.88,0.79574621]
[1756962857100,1.0558038,848.22,846.87,0.79574621]
[1756962857297,1.0558038,848.21,846.87,0.79574621]
[1756962858202,1.0558038,848.19,846.89,0.79574621]
[1756962858398,1.0558038,848.19,846.88,0.79574621]
[1756962858597,1.0558038,848.2,846.88,0.79574621]
[1756962859201,1.0558038,848.19,846.89,0.79574621]
[1756962860201,1.0558038,848.18,846.91,0.79574621]
[1756962860497,1.0558038,848.16,846.91,0.79574621]
[1756962861401,1.0558038,848.14,846.93,0.79574621]
[1756962861600,1.0558038,848.16,846.97,0.79574621]
[1756962861797,1.0558038,848.15,846.97,0.79574621]
[1756962862002,1.0558038,848.14,846.98,0.79574621]
[1756962862202,1.0558038,848.15,846.98,0.79574621]
[1756962862502,1.0558038,848.15,846.97,0.79574621]
[1756962863204,1.0558038,848.15,846.98,0.79574621]
[1756962863802,1.0558038,848.07,847.02,0.79574621]
[1756962864000,1.0558038,848.05,847.02,0.79574621]
[1756962864203,1.0558038,848.05,846.45,0.20526493]
[1756962864204,1.0558038,848.05,847.04,0.79574621]
[1756962864506,1.0558038,848.05,847.1,0.79574621]
[1756962864705,1.0558038,848.06,847.09,0.79574621]
[1756962865202,1.0558038,848.05,847.1,0.79574621]
[1756962865702,1.0558038,848.12,847.18,0.79574621]
[1756962865906,1.0558038,848.09,847.19,0.79574621]
[1756962866205,1.0558038,848.11,847.18,0.79574621]
[1756962866405,1.0558038,848.11,847.19,0.79574621]
[1756962867006,1.0558038,848.13,847.18,0.79574621]
[1756962868206,1.0558038,848.12,847.19,0.79574621]
[1756962869809,1.0558038,848.14,847.18,0.79574621]
[1756962870211,1.0558038,848.14,847.19,0.79574621]
[1756962870410,1.0558038,848.13,847.19,0.79574621]
[1756962871110,1.0558038,848.17,847.17,0.79574621]
[1756962871410,1.0558038,848.19,847.17,0.79574621]
[1756962872112,1.0558038,848.21,847.16,0.79574621]
[1756962872313,1.0558038,848.22,847.16,0.79574621]
[1756962873015,1.0558038,848.23,847.15,0.79574621]
[1756962873213,1.0558038,848.22,847.16,0.79574621]
[1756962875614,1.0558038,848.24,847.24,0.79574621]
[1756962876109,1.0558038,848.24,847.25,0.79574621]
[1756962876308,1.0558038,848.24,847.24,0.79574621]
[1756962876912,1.0558038,848.2,847.21,0.79574621]
[1756962877418,1.0558038,848.21,847.2,0.79574621]
[1756962878119,1.0558038,848.19,847.21,0.79574621]
[1756962878920,1.0558038,848.2,847.21,0.79574621]
[1756962879321,1.0558038,848.2,847.2,0.79574621]
[1756962881120,1.0558038,848.21,847.2,0.79574621]
[1756962882020,1.0558038,848.22,847.19,0.79574621]
[1756962882822,1.0558038,848.21,847.2,0.79574621]
[1756962883323,1.0558038,848.21,847.19,0.79574621]
[1756962884630,0.20526069,847.96,847.19,0.79574621]
[1756962885631,0.20526069,847.96,847.21,0.79574621]
[1756962885930,0.20526069,847.96,847.18,0.79574621]
[1756962886434,0.20526069,847.96,847.16,0.79574621]
[1756962887028,0.20526069,847.96,847.19,0.79574621]
[1756962889329,0.20526069,847.96,847.18,0.79574621]
[1756962891729,0.20526069,847.96,847.17,0.79574621]
[1756962891933,0.20526069,847.96,847.25,0.79574621]
[1756962893543,0.20526069,847.96,847.06,1.0543807]
[1756962893839,0.20526069,847.96,847.25,0.79463973]
[1756962894039,0.20526069,847.96,847.24,0.79463973]
[1756962895844,0.20526069,847.96,847.25,0.79463973]
[1756962896545,0.20526069,847.96,847.23,0.79463973]
[1756962896944,0.20526069,847.96,847.24,0.79463973]
[1756962897139,0.20526069,847.96,847.23,0.79463973]
[1756962898946,0.20526069,847.96,847.03,1.0543807]
[1756962898947,0.20526069,847.96,847.24,0.79463973]
[1756962901146,0.20526069,847.96,847.26,0.79463973]
[1756962901347,0.20526069,847.96,847.19,0.79463973]
[1756962902146,0.20526069,847.96,847.17,0.79463973]
[1756962902342,0.20526069,847.96,847.16,0.79463973]
[1756962902946,0.20526069,847.96,847.15,0.79463973]
[1756962904442,0.20526069,847.96,847.09,0.79463973]
[1756962904846,0.20526069,847.96,847.06,0.79463973]
[1756962905543,0.20526069,847.96,847.05,0.79463973]
[1756962906343,0.20526069,847.96,847.04,0.79463973]
[1756962906842,0.20526069,847.96,847.05,0.79463973]
[1756962909243,0.20526069,847.96,847.06,0.79463973]
[1756962909746,0.20526069,847.96,847.09,0.79463973]
[1756962910943,0.20526069,847.96,847.1,0.79463973]
[1756962911148,0.20526069,847.96,847.14,0.79463973]
[1756962911348,0.20526069,847.96,847.2,0.79463973]
[1756962911647,0.20526069,847.96,847.21,0.79463973]
[1756962912144,0.20526069,847.96,847.19,0.79463973]
[1756962912648,0.20526069,847.96,847.2,0.79463973]
[1756962913648,0.20526069,847.96,847.02,1.0543807]
[1756962913649,0.20526069,847.96,847.07,0.79463973]
[1756962914847,0.20526069,847.96,847.05,0.79463973]
[1756962915051,0.20526069,847.96,847.11,0.79463973]
[1756962915448,0.20526069,847.96,847.12,0.79463973]
[1756962916852,0.20526069,847.96,847.1,0.79463973]
[1756962917051,0.20526069,847.96,847.11,0.79463973]
[1756962917251,0.20526069,847.96,847.1,0.79463973]
[1756962917753,0.20526069,847.96,847.17,0.79463973]
[1756962917953,0.20526069,847.96,846.92,1.0543807]
[1756962917954,0.20526069,847.96,847.21,0.79463973]
[1756962918754,0.20526069,847.96,847.25,0.79463973]
[1756962919449,0.20526069,847.96,847.36,0.79463973]
[1756962919850,0.20526069,847.96,847.37,0.79463973]
[1756962921856,0.20526069,847.96,847.38,0.79463973]
[1756962922056,0.20526069,847.96,847.37,0.79463973]
[1756962922557,0.20526069,847.96,847.36,0.79463973]
[1756962922856,0.20526069,847.96,847.15,1.0543807]
[1756962922857,0.20526069,847.96,847.38,0.79463973]
[1756962923054,0.20526069,847.96,847.39,0.79463973]
[1756962923258,0.20526069,847.96,847.43,0.79463973]
[1756962923957,0.20526069,847.96,847.42,0.79463973]
[1756962925358,0.20526069,847.96,847.41,0.79463973]
[1756962926257,0.20526069,847.96,847.4,0.79463973]
[1756962926855,0.20526069,847.96,847.43,0.79463973]
[1756962927258,0.20526069,847.96,847.42,0.79463973]
[1756962928056,0.20526069,847.96,847.43,0.79463973]
[1756962928357,0.20526069,847.96,847.47,0.79463973]
[1756962928559,0.20526069,847.96,847.49,0.79463973]
[1756962929359,0.20526069,847.96,847.48,0.79463973]
[1756962930454,0.20526069,847.96,847.47,0.79463973]
[1756962930655,0.20526069,847.96,847.48,0.79463973]
[1756962931462,0.20526069,847.96,847.47,0.79463973]
[1756962932259,0.20526069,847.96,847.46,0.79463973]
[1756962932560,0.20526069,847.96,847.47,0.79463973]
[1756962933457,0.20526069,847.96,847.46,0.79463973]
[1756962934260,0.20526069,847.96,847.45,0.79463973]
[1756962935456,0.20526069,847.96,847.45,0.7927742]
[1756962935761,0.20526069,847.96,847.44,0.7927742]
[1756962936061,0.20526069,847.96,847.45,0.7927742]
[1756962936262,0.20526069,847.96,847.43,0.7927742]
[1756962937261,0.20526069,847.96,847.4,0.7927742]
[1756962937458,0.20526069,847.96,847.39,0.7927742]
[1756962939266,0.20526069,847.96,847.38,0.7927742]
[1756962941362,0.20526069,847.96,847.4,0.7927742]
[1756962943868,0.20526069,847.96,847.36,0.7927742]
[1756962944065,0.20526069,847.96,847.35,0.7927742]
[1756962946169,0.20526069,847.96,847.34,0.7927742]
[1756962946367,0.20526069,847.96,847.3,0.7927742]
[1756962947471,0.20526069,847.96,847.29,0.7927742]
[1756962949471,0.20526069,847.96,847.3,0.7927742]
[1756962951175,0.20526069,847.96,847.31,0.7927742]
[1756962954176,0.20526069,847.96,847.3,0.7927742]
[1756962955278,0.20526069,847.96,847.32,0.7927742]
[1756962956173,0.20526069,847.96,847.33,0.7927742]
[1756962957578,0.20526069,847.96,847.34,0.7927742]
[1756962957778,0.20526069,847.96,847.34,0.7926295]
[1756962958473,0.20526069,847.96,847.35,0.7926295]
[1756962963779,0.20526069,847.96,847.34,0.7926295]
[1756962964081,0.20526069,847.96,847.35,0.7926295]
[1756962965378,0.20526069,847.96,847.36,0.7926295]
[1756962966285,0.20526069,847.96,847.37,0.7926295]
[1756962966483,0.20526069,847.96,847.35,0.7926295]
[1756962966987,0.20526069,847.96,847.34,0.7926295]
[1756962968284,0.20526069,847.96,847.35,0.7926295]
[1756962968688,0.20526069,847.96,847.36,0.7926295]
[1756962969290,0.20526069,847.96,847.37,0.7926295]
[1756962970288,0.20526069,847.96,847.38,0.7926295]
[1756962971192,0.20526069,847.96,847.44,0.7926295]
[1756962971394,0.20526069,847.96,847.53,0.7926295]
[1756962971894,0.20526069,847.96,847.37,1.0543807]
[1756962971895,0.20526069,847.96,847.54,0.7926295]
[1756962972493,0.20526069,847.96,847.52,0.7926295]
[1756962973594,0.20526069,847.96,847.53,0.7926295]
[1756962974193,0.20526069,847.96,847.54,0.7926295]
[1756962976295,0.20526069,847.96,846.45,0.20526493]
[1756962976296,0.20526069,847.96,847.55,0.7926295]
[1756962976696,0.20526069,847.96,847.52,0.7926295]
[1756962976896,0.20526069,847.96,847.53,0.7926295]
[1756962977299,0.20526069,847.96,847.54,0.7926295]
[1756962979391,0.20526069,847.96,847.55,0.7926295]
[1756962979596,0.20526069,847.96,847.54,0.7926295]
[1756962980197,0.20526069,847.96,847.53,0.7926295]
[1756962981294,0.20526069,847.96,847.3,1.0543807]
[1756962981295,0.20526069,847.96,847.52,0.7926295]
[1756962982698,0.20526069,847.96,847.53,0.7926295]
[1756962983493,0.20526069,847.96,847.52,0.7926295]
[1756962985396,0.20526069,847.96,847.5,0.7926295]
[1756962985800,0.20526069,847.96,847.48,0.7926295]
[1756962986195,0.20526069,847.96,847.47,0.7926295]
[1756962986395,0.20526069,847.96,847.46,0.7926295]
[1756962986697,0.20526069,847.96,847.45,0.7926295]
[1756962986899,0.20526069,847.96,847.46,0.7926295]
[1756962987600,0.20526069,847.96,847.47,0.7926295]
[1756962987795,0.20526069,847.96,847.46,0.7926295]
[1756962989000,0.20526069,847.96,847.45,0.7926295]
[1756962989297,0.20526069,847.96,847.42,0.7926295]
[1756962990395,0.20526069,847.96,847.41,0.7926295]
[1756962990597,0.20526069,847.96,847.39,0.7926295]
[1756962990894,0.20526069,847.96,847.41,0.7926295]
[1756962994309,0.20526069,847.96,847.43,0.7926295]
[1756962995911,0.20526069,847.96,847.44,0.7926295]
[1756962996809,0.20526069,847.96,847.43,0.7926295]
[1756962997014,0.20526069,847.96,847.42,0.7926295]
[1756962998618,0.20526069,847.96,847.45,0.7926295]
[1756962999017,0.20526069,847.96,847.46,0.7926295]
[1756962999820,0.20526069,847.96,847.45,0.7926295]
[1756963000319,0.20526069,847.96,847.47,0.7926295]
[1756963000919,0.20526069,847.96,847.44,0.7926295]
[1756963003619,0.20526069,847.96,847.45,0.7926295]
[1756963003818,0.20526069,847.96,847.44,0.7926295]
[1756963006221,0.20526069,847.96,847.43,0.7926295]
[1756963007118,0.20526069,847.96,847.42,0.7926295]
[1756963008917,0.20526069,847.96,847.4,0.7926295]
[1756963009620,0.20526069,847.96,847.39,0.7926295]
[1756963009820,0.20526069,847.96,847.41,0.7926295]
[1756963010723,0.20526069,847.96,847.42,0.7926295]
[1756963011523,0.20526069,847.96,847.41,0.7926295]
[1756963011719,0.20526069,847.96,847.42,0.7926295]
[1756963011923,0.20526069,847.96,847.41,0.7926295]
[1756963013520,0.20526069,847.96,847.42,0.7926295]
[1756963014019,0.20526069,847.96,847.45,0.7926295]
[1756963014223,0.20526069,847.96,847.46,0.7926295]
[1756963014523,0.20526069,847.96,847.47,0.7926295]
[1756963015123,0.20526069,847.96,847.49,0.7926295]
[1756963015323,0.20526069,847.96,847.51,0.7926295]
[1756963015520,0.20526069,847.96,847.52,0.7926295]
[1756963015719,0.20526069,847.96,847.53,0.7926295]
[1756963017021,0.20526069,847.96,847.52,0.7926295]
[1756963017522,0.20526069,847.96,847.53,0.7926295]
[1756963019125,0.20526069,847.96,847.51,0.7926295]
[1756963020024,0.20526069,847.96,847.52,0.7926295]
[1756963020428,0.20526069,847.96,847.54,0.7926295]
[1756963021426,0.20526069,847.96,847.52,0.7926295]
[1756963023330,0.20526069,847.96,847.31,1.0543807]
[1756963023331,0.20526069,847.96,847.51,0.7926295]
[1756963025233,0.20526069,847.96,847.52,0.7926295]
[1756963026128,0.20526069,847.96,847.54,0.7926295]
[1756963027031,0.20526069,847.96,847.56,0.7926295]
[1756963027433,0.20526069,847.96,847.58,0.7926295]
[1756963028433,0.20526069,847.96,847.57,0.7926295]
[1756963028938,0.20526069,847.96,847.5,0.7926295]
[1756963029335,0.20526069,847.96,847.49,0.7926295]
[1756963029738,0.20526069,847.96,847.5,0.7926295]
[1756963030740,0.20526069,847.96,847.49,0.7926295]
[1756963034940,0.20526069,847.96,847.5,0.7926295]
[1756963035344,0.20526069,847.96,847.51,0.7926295]
[1756963036146,0.20526069,847.96,847.5,0.7926295]
[1756963036346,0.20526069,847.96,847.49,0.7926295]
[1756963036546,0.20526069,847.96,847.5,0.7926295]
[1756963037347,0.20526069,847.96,847.48,0.7926295]
[1756963039047,0.20526069,847.96,847.49,0.7926295]
[1756963039348,0.20526069,847.96,847.45,0.7926295]
[1756963045150,0.20526069,847.96,847.46,0.7926295]
[1756963045750,0.20526069,847.96,847.47,0.7926295]
[1756963046757,0.20526069,847.96,847.45,0.7926295]
[1756963049255,0.20526069,847.96,847.47,0.7926295]
[1756963049559,0.20526069,847.96,847.46,0.7926295]
[1756963049859,0.20526069,847.96,847.45,0.7926295]
[1756963050855,0.20526069,847.96,847.38,0.7926295]
[1756963051160,0.20526069,847.96,847.37,0.7926295]
[1756963051456,0.20526069,847.96,847.36,0.7926295]
[1756963051657,0.20526069,847.96,847.27,0.7926295]
[1756963052463,0.20526069,847.96,847.26,0.7926295]
[1756963056870,0.20526069,847.96,847.25,0.7926295]
[1756963057068,0.20526069,847.96,847.24,0.7926295]
[1756963058968,0.20526069,847.96,846.95,1.0543807]
[1756963058969,0.20526069,847.96,847.22,0.7926295]
[1756963059473,0.20526069,847.96,847.21,0.7926295]
[1756963059674,0.20526069,847.96,847.3,0.7926295]
[1756963060573,0.20526069,847.96,847.29,0.7926295]
[1756963064374,0.20526069,847.96,847.28,0.7926295]
[1756963065774,1.0558038,848.23,847.28,0.7926295]
[1756963066174,1.0558038,848.22,847.29,0.7926295]
[1756963066374,1.0558038,848.31,847.25,0.7926295]
[1756963068277,1.0558038,848.32,847.25,0.7926295]
[1756963068771,1.0558038,848.29,847.25,0.7926295]
[1756963070177,1.0558038,848.29,847.26,0.7926295]
[1756963070378,1.0558038,848.29,847.25,0.7926295]
[1756963071474,0.20524737,848.04,847.25,0.7926295]
[1756963071678,0.20524737,848.04,847.23,0.7926295]
[1756963073876,0.20524737,848.04,847.22,0.7926295]
[1756963076377,0.20524737,848.04,847.24,0.7926295]
[1756963076677,0.20524737,848.04,847.25,0.7926295]
[1756963077079,0.20524737,848.04,847.22,0.7926295]
[1756963080984,0.20524737,848.04,847.23,0.7926295]
[1756963081485,0.20524737,848.04,847.04,1.0543807]
[1756963081486,0.20524737,848.04,847.25,0.7926295]
[1756963083785,0.20524737,848.04,847.27,0.7926295]
[1756963084187,0.20524737,848.04,847.28,0.7926295]
[1756963084886,0.20524737,848.04,847.27,0.7926295]
[1756963085187,0.20524737,848.04,847.26,0.7926295]